fUSD/lending_fUSD_20240708
["ID","MTS","AMOUNT","RATE_DAILY","PERIOD"]
[331519197,1720446532795,-156.19537253,0.00042172,30]
[331519198,1720446532897,-151.14628752,0.00042939,30]
[331519199,1720446533003,-164.49309806,0.00043386,120]
[331519200,1720446533105,-2035.02,0.00043835,120]
[331519201,1720446533210,-152.48368614,0.00043891,30]
[331519202,1720446533316,-155.2667115,0.00044229,30]
[331519203,1720446533437,-156.38550522,0.00044338,30]
[331519204,1720446533556,-2035.02,0.00045205,120]
[331519205,1720446533674,-156.19537253,0.0004533,30]
[331519206,1720446533785,-152.38462349,0.00045376,30]
[331519207,1720446533891,-156.19537253,0.00045766,30]
[331519208,1720446533999,-155.2667115,0.00046032,30]
[331519209,1720446534112,-155.2667115,0.00046224,30]
[331519210,1720446534419,-150.05450298,0.00046358,30]
[331519211,1720446534540,-2035.02,0.00046575,120]
[331519212,1720446534656,-150.21301901,0.00046675,30]
[331519213,1720446534760,-152.48368614,0.00046966,30]
[331519214,1720446534865,-150.12346758,0.00047499,30]
[331519215,1720446534976,-2035.02,0.00047945,120]
[331519216,1720446535085,-155.2667115,0.00048071,30]
[331519217,1720446535196,-156.19537253,0.00048118,30]
[331519218,1720446535304,-156.81855096,0.00048124,30]
[331519219,1720446535413,-155.2667115,0.00048224,30]
[331519220,1720446535529,-150.05450298,0.00048845,30]
[331519221,1720446535640,-155.2667115,0.00049093,30]
[331519222,1720446535755,-500.0,0.00049315,120]
[331519223,1720446535864,-250.0,0.00049315,120]
[331519224,1720446535975,-500.0,0.00049315,120]
[331519225,1720446536084,-500.0,0.00049315,120]
[331519226,1720446536191,-704.82,0.00049315,120]
[331519227,1720446536296,-500.0,0.00049315,120]
[331519228,1720446536401,-500.0,0.00049315,120]
[331519229,1720446536507,-500.0,0.00049315,120]
[331519230,1720446536612,-1163.26,0.00049315,120]
[331519231,1720446536721,-500.0,0.00049315,120]
[331519232,1720446536827,-500.0,0.00049315,120]
[331519233,1720446536932,-500.0,0.00049315,120]
[331519234,1720446537040,-500.0,0.00049315,120]
[331519235,1720446537148,-500.0,0.00049315,120]
[331519236,1720446537252,-966.97,0.00049315,120]
[331519237,1720446537357,-500.0,0.00049315,120]
[331519238,1720446537461,-500.0,0.00049315,120]
[331519239,1720446537568,-500.0,0.00049315,120]
[331519240,1720446537674,-1435.54,0.00049315,120]
[331519241,1720446537783,-982.43,0.00049315,120]
[331519242,1720446537896,-500.0,0.00049315,120]
[331519243,1720446538005,-500.0,0.00049315,120]
[331519244,1720446538114,-500.0,0.00049315,120]
[331519245,1720446538220,-500.0,0.00049315,120]
[331519246,1720446538324,-500.0,0.00049315,120]
[331519247,1720446538438,-500.0,0.00049315,120]
[331519248,1720446538553,-500.0,0.00049315,120]
[331519249,1720446538668,-500.0,0.00049315,120]
[331519250,1720446538787,-2601.42,0.00049315,120]
[331519251,1720446538897,-500.0,0.00049315,120]
[331519252,1720446539008,-500.0,0.00049315,120]
[331519253,1720446539120,-500.0,0.00049315,120]
[331519254,1720446539234,-500.0,0.00049315,120]
[331519255,1720446539352,-500.0,0.00049315,120]
[331519256,1720446539473,-500.0,0.00049315,120]
[331519257,1720446539593,-500.0,0.00049315,120]
[331519258,1720446539711,-500.0,0.00049315,120]
[331519259,1720446539835,-500.0,0.00049315,120]
[331519260,1720446539954,-500.0,0.00049315,120]
[331519261,1720446540077,-500.0,0.00049315,120]
[331519262,1720446540204,-500.0,0.00049315,120]
[331519263,1720446540338,-500.0,0.00049315,120]
[331519264,1720446540470,-500.0,0.00049315,120]
[331519265,1720446540589,-500.0,0.00049315,120]
[331519266,1720446540698,-500.0,0.00049315,120]
[331519267,1720446540804,-500.0,0.00049315,120]
[331519268,1720446540914,-576.67,0.00049315,120]
[331519269,1720446541029,-656.98,0.00049315,120]
[331519270,1720446541140,-500.0,0.00049315,120]
[331519271,1720446541258,-875.42,0.00049315,120]
[331519272,1720446541364,-500.0,0.00049315,120]
[331519273,1720446541475,-500.0,0.00049315,120]
[331519274,1720446541584,-500.0,0.00049315,120]
[331519275,1720446541694,-500.0,0.00049315,120]
[331519276,1720446541807,-500.0,0.00049315,120]
[331519277,1720446541924,-500.0,0.00049315,120]
[331519278,1720446542039,-500.0,0.00049315,120]
[331519279,1720446542149,-500.0,0.00049315,120]
[331519281,1720446542256,-500.0,0.00049315,120]
[331519282,1720446542362,-301.0015644,0.00049315,120]
[331519283,1720446542469,-500.0,0.00049315,120]
[331519284,1720446542576,-500.0,0.00049315,120]
[331519285,1720446542680,-500.0,0.00049315,120]
[331519286,1720446542786,-500.0,0.00049315,120]
[331519287,1720446542889,-601.48,0.00049315,120]
[331519288,1720446542992,-927.61,0.00049315,120]
[331519289,1720446543094,-500.0,0.00049315,120]
[331519290,1720446543200,-504.76999517,0.00049315,120]
[331519291,1720446543305,-500.0,0.00049315,120]
[331519292,1720446543425,-505.06350476,0.00049315,120]
[331519293,1720446543544,-500.0,0.00049315,120]
[331519294,1720446543671,-500.0,0.00049315,120]
[331519295,1720446543790,-500.0,0.00049315,120]
[331519296,1720446543906,-503.83228459,0.00049315,120]
[331519297,1720446544019,-500.0,0.00049315,120]
[331519298,1720446544135,-663.11,0.00049315,120]
[331519299,1720446544252,-500.0,0.00049315,120]
[331519300,1720446544364,-500.0,0.00049315,120]
[331519301,1720446544481,-503.83077313,0.00049315,120]
[331519302,1720446544598,-500.0,0.00049315,120]
[331519303,1720446544717,-500.0,0.00049315,120]
[331519304,1720446544842,-995.13,0.00049315,120]
[331519305,1720446544965,-500.0,0.00049315,120]
[331519306,1720446545077,-500.0,0.00049315,30]
[331519307,1720446545186,-500.0,0.00049315,120]
[331519308,1720446545292,-500.0,0.00049315,120]
[331519309,1720446545400,-500.0,0.00049315,120]
[331519310,1720446545512,-503.89,0.00049315,120]
[331519311,1720446545624,-503.43866773,0.00049315,120]
[331519312,1720446545731,-500.0,0.00049315,120]
[331519313,1720446545981,-500.0,0.00049315,120]
[331519314,1720446546090,-500.0,0.00049315,120]
[331519315,1720446546198,-500.0,0.00049315,120]
[331519316,1720446546302,-500.0,0.00049315,120]
[331519317,1720446546410,-500.0,0.00049315,120]
[331519318,1720446546514,-2052.66,0.00049315,120]
[331519319,1720446546621,-501.85438645,0.00049315,120]
[331519320,1720446546725,-500.0,0.00049315,120]
[331519321,1720446546831,-503.96498054,0.00049315,120]
[331519322,1720446546936,-500.0,0.00049315,120]
[331519323,1720446547044,-500.0,0.00049315,120]
[331519324,1720446547154,-500.0,0.00049315,120]
[331519325,1720446547266,-500.0,0.00049315,120]
[331519326,1720446547373,-500.0,0.00049315,120]
[331519327,1720446547479,-500.0,0.00049315,120]
[331519328,1720446547586,-501.86367478,0.00049315,120]
[331519329,1720446547699,-500.0,0.00049315,120]
[331519330,1720446547806,-500.99363819,0.00049315,120]
[331519331,1720446547913,-500.0,0.00049315,120]
[331519332,1720446548018,-241.37064599,0.00049315,120]
[331519333,1720446548128,-793.83,0.00049315,120]
[331519334,1720446548235,-500.0,0.00049315,120]
[331519335,1720446548343,-500.0,0.00049315,120]
[331519336,1720446548458,-500.0,0.00049315,120]
[331519337,1720446548575,-500.87791502,0.00049315,120]
[331519338,1720446548693,-500.0,0.00049315,120]
[331519339,1720446548807,-500.0,0.00049315,120]
[331519340,1720446548915,-500.0,0.00049315,120]
[331519341,1720446549024,-501.11972592,0.00049315,120]
[331519342,1720446549143,-500.79808316,0.00049315,120]
[331519343,1720446549266,-500.0,0.00049315,120]
[331519344,1720446549400,-500.51735637,0.00049315,120]
[331519345,1720446549529,-500.0,0.00049315,120]
[331519346,1720446549656,-500.0,0.00049315,120]
[331519347,1720446549771,-502.15320651,0.00049315,120]
[331519348,1720446549887,-500.0,0.00049315,120]
[331519349,1720446550007,-500.0,0.00049315,120]
[331519350,1720446550127,-500.0,0.00049315,120]
[331519351,1720446550252,-501.04172154,0.00049315,120]
[331519352,1720446550369,-500.0,0.00049315,120]
[331519353,1720446550489,-500.0,0.00049315,120]
[331519354,1720446550606,-501.5918952,0.00049315,120]
[331519355,1720446550722,-500.0,0.00049315,120]
[331519356,1720446550834,-500.0,0.00049315,120]
[331519357,1720446550945,-500.0,0.00049315,120]
[331519358,1720446551056,-501.42189675,0.00049315,120]
[331519359,1720446551168,-680.97,0.00049315,120]
[331519360,1720446551291,-500.0,0.00049315,120]
[331519361,1720446551408,-500.0,0.00049315,120]
[331519362,1720446551522,-500.0,0.00049315,120]
[331519363,1720446551638,-500.0,0.00049315,120]
[331519364,1720446551747,-500.0,0.00049315,120]
[331519365,1720446551858,-385.85847725,0.00049315,120]
[331519366,1720446551964,-500.0,0.00049315,120]
[331519367,1720446552071,-500.0,0.00049315,120]
[331519368,1720446552177,-500.0,0.00049315,120]
[331519369,1720446552304,-500.0,0.00049315,120]
[331519370,1720446552417,-500.0,0.00049315,120]
[331519371,1720446552526,-500.0,0.00049315,120]
[331519372,1720446552634,-576.64,0.00049315,120]
[331519373,1720446552748,-500.0,0.00049315,120]
[331519374,1720446552866,-500.0,0.00049315,120]
[331519375,1720446552978,-500.0,0.00049315,120]
[331519376,1720446553092,-500.0,0.00049315,120]
[331519377,1720446553200,-500.0,0.00049315,120]
[331519378,1720446553321,-500.0,0.00049315,120]
[331519379,1720446553442,-500.0,0.00049315,120]
[331519380,1720446553555,-500.0,0.00049315,120]
[331519381,1720446553669,-844.3,0.00049315,120]
[331519382,1720446553784,-500.0,0.00049315,120]
[331519383,1720446553895,-500.0,0.00049315,120]
[331519384,1720446554003,-500.0,0.00049315,120]
[331519385,1720446554115,-626.46,0.00049315,120]
[331519386,1720446554232,-500.0,0.00049315,120]
[331519387,1720446554350,-503.86925969,0.00049315,120]
[331519388,1720446554478,-858.72,0.00049315,120]
[331519389,1720446554603,-500.0,0.00049315,120]
[331519390,1720446554716,-500.0,0.00049315,120]
[331519391,1720446554835,-500.0,0.00049315,120]
[331519392,1720446554955,-606.39,0.00049315,120]
[331519393,1720446555073,-500.0,0.00049315,120]
[331519394,1720446555187,-500.0,0.00049315,120]
[331519395,1720446555309,-500.0,0.00049315,120]
[331519396,1720446555425,-608.68,0.00049315,120]
[331519397,1720446555543,-586.51,0.00049315,120]
[331519398,1720446555669,-500.0,0.00049315,120]
[331519399,1720446555785,-500.0,0.00049315,120]
[331519400,1720446555899,-500.0,0.00049315,120]
[331519401,1720446556014,-500.0,0.00049315,120]
[331519402,1720446556135,-500.0,0.00049315,120]
[331519403,1720446556253,-500.0,0.00049315,120]
[331519404,1720446556365,-500.0,0.00049315,120]
[331519405,1720446556480,-500.0,0.00049315,120]
[331519406,1720446556599,-500.47052379,0.00049315,120]
[331519407,1720446556714,-529.13609312,0.00049315,120]
[331519408,1720446556826,-500.0,0.00049315,120]
[331519409,1720446556938,-500.0,0.00049315,120]
[331519410,1720446557055,-500.0,0.00049315,120]
[331519411,1720446557166,-542.21841112,0.00049315,120]
[331519412,1720446557276,-504.13764488,0.00049315,120]
[331519413,1720446557389,-2035.02,0.00049315,120]
[331519414,1720446557504,-500.0,0.00049315,120]
[331519415,1720446557617,-500.0,0.00049315,120]
[331519416,1720446557730,-500.0,0.00049315,120]
[331519417,1720446558014,-500.0,0.00049315,120]
[331519418,1720446558122,-500.0,0.00049315,120]
[331519419,1720446558235,-503.6682012,0.00049315,120]
[331519420,1720446558348,-698.26,0.00049315,120]
[331519421,1720446558469,-500.0,0.00049315,120]
[331519422,1720446558593,-500.0,0.00049315,120]
[331519423,1720446558716,-500.0,0.00049315,120]
[331519424,1720446558829,-505.62784631,0.00049315,120]
[331519425,1720446558943,-500.0,0.00049315,120]
[331519426,1720446559062,-500.0,0.00049315,120]
[331519427,1720446559183,-580.79,0.00049315,120]
[331519428,1720446559310,-500.0,0.00049315,120]
[331519429,1720446559439,-516.73998508,0.00049315,120]
[331519430,1720446559567,-500.0,0.00049315,120]
[331519431,1720446559687,-500.0,0.00049315,120]
[331519432,1720446559810,-500.0,0.00049315,120]
[331519433,1720446559929,-1752.42,0.00049315,120]
[331519434,1720446560048,-500.0,0.00049315,120]
[331519435,1720446560164,-500.0,0.00049315,120]
[331519436,1720446560276,-500.0,0.00049315,120]
[331519437,1720446560387,-500.0,0.00049315,120]
[331519438,1720446560506,-500.0,0.00049315,120]
[331519439,1720446560624,-500.0,0.00049315,120]
[331519440,1720446560735,-1395.37,0.00049315,120]
[331519441,1720446560847,-500.0,0.00049315,120]
[331519442,1720446560958,-500.0,0.00049315,120]
[331519443,1720446561070,-500.0,0.00049315,120]
[331519444,1720446561184,-500.0,0.00049315,120]
[331519445,1720446561295,-500.0,0.00049315,120]
[331519446,1720446561407,-500.0,0.00049315,120]
[331519447,1720446561516,-500.0,0.00049315,120]
[331519448,1720446561633,-789.75,0.00049315,120]
[331519449,1720446561743,-500.0,0.00049315,120]
[331519450,1720446561852,-500.0,0.00049315,120]
[331519451,1720446561960,-500.0,0.00049315,120]
[331519452,1720446562067,-500.0,0.00049315,120]
[331519453,1720446562185,-500.0,0.00049315,120]
[331519454,1720446562294,-500.0,0.00049315,120]
[331519455,1720446562404,-500.0,0.00049315,120]
[331519456,1720446562509,-618.35,0.00049315,120]
[331519457,1720446562619,-500.0,0.00049315,120]
[331519458,1720446562729,-500.0,0.00049315,120]
[331519459,1720446562838,-500.0,0.00049315,120]
[331519460,1720446562947,-500.0,0.00049315,120]
[331519461,1720446563057,-500.0,0.00049315,120]
[331519462,1720446563168,-506.52,0.00049315,120]
[331519463,1720446563276,-500.0,0.00049315,120]
[331519464,1720446563397,-768.09,0.00049315,120]
[331519465,1720446563519,-500.0,0.00049315,120]
[331519466,1720446563642,-500.0,0.00049315,120]
[331519467,1720446563760,-500.0,0.00049315,120]
[331519468,1720446563874,-610.82,0.00049315,120]
[331519469,1720446563989,-500.0,0.00049315,120]
[331519470,1720446564106,-500.0,0.00049315,120]
[331519471,1720446564231,-621.72,0.00049315,120]
[331519472,1720446564355,-500.0,0.00049315,120]
[331519473,1720446564479,-500.0,0.00049315,120]
[331519474,1720446564601,-702.25,0.00049315,120]
[331519475,1720446564719,-702.25,0.00049315,120]
[331519476,1720446564833,-702.25,0.00049315,120]
[331519477,1720446564943,-702.25,0.00049315,120]
[331519478,1720446565057,-702.25,0.00049315,120]
[331519479,1720446565181,-702.25,0.00049315,120]
[331519480,1720446565300,-500.0,0.00049315,120]
[331519481,1720446565420,-702.25,0.00049315,120]
[331519482,1720446565540,-702.25,0.00049315,120]
[331519483,1720446565658,-702.25,0.00049315,120]
[331519484,1720446565770,-702.25,0.00049315,120]
[331519485,1720446565885,-702.25,0.00049315,120]
[331519486,1720446565999,-702.25,0.00049315,120]
[331519487,1720446566113,-702.25,0.00049315,120]
[331519488,1720446566227,-702.25,0.00049315,120]
[331519489,1720446566346,-702.25,0.00049315,120]
[331519490,1720446566459,-702.25,0.00049315,120]
[331519491,1720446566573,-702.25,0.00049315,120]
[331519492,1720446566688,-702.25,0.00049315,120]
[331519493,1720446566800,-702.25,0.00049315,120]
[331519494,1720446566913,-702.25,0.00049315,120]
[331519495,1720446567026,-702.25,0.00049315,120]
[331519496,1720446567143,-500.0,0.00049315,120]
[331519497,1720446567255,-702.25,0.00049315,120]
[331519498,1720446567365,-702.25,0.00049315,120]
[331519499,1720446567474,-702.41842812,0.00049315,120]
[331519500,1720446567585,-500.0,0.00049315,120]
[331519501,1720446567700,-1216.49,0.00049315,120]
[331519502,1720446567817,-3725.93,0.00049315,120]
[331519503,1720446567931,-500.0,0.00049315,120]
[331519504,1720446568043,-935.49,0.00049315,120]
[331519505,1720446568157,-675.31,0.00049315,120]
[331519506,1720446568272,-2876.66,0.00049315,120]
[331519507,1720446568395,-500.0,0.00049315,120]
[331519508,1720446568516,-500.0,0.00049315,120]
[331519509,1720446568639,-586.12,0.00049315,120]
[331519510,1720446568759,-500.0,0.00049315,120]
[331519511,1720446568873,-1521.41,0.00049315,120]
[331519512,1720446568992,-500.0,0.00049315,120]
[331519513,1720446569114,-8657.52,0.00049315,120]
[331519514,1720446569236,-156.19537253,0.00049444,30]
[331519515,1720446569357,-156.19537253,0.00049469,30]
[331519516,1720446569484,-500.0,0.00049589,120]
[331519517,1720446569612,-250.0,0.00049589,120]
[331519518,1720446569734,-500.0,0.00049589,120]
[331519519,1720446569858,-500.0,0.00049589,120]
[331519520,1720446569979,-704.82,0.00049589,120]
[331519521,1720446570278,-500.0,0.00049589,120]
[331519522,1720446570396,-500.0,0.00049589,120]
[331519523,1720446570510,-500.0,0.00049589,120]
[331519524,1720446570621,-1163.26,0.00049589,120]
[331519525,1720446570732,-500.0,0.00049589,120]
[331519526,1720446570841,-500.0,0.00049589,120]
[331519527,1720446570950,-500.0,0.00049589,120]
[331519528,1720446571065,-500.0,0.00049589,120]
[331519529,1720446571180,-500.0,0.00049589,120]
[331519530,1720446571294,-966.97,0.00049589,120]
[331519531,1720446571407,-500.0,0.00049589,120]
[331519532,1720446571514,-500.0,0.00049589,120]
[331519533,1720446571625,-500.0,0.00049589,120]
[331519534,1720446571735,-1435.54,0.00049589,120]
[331519535,1720446571843,-982.43,0.00049589,120]
[331519536,1720446571960,-500.0,0.00049589,120]
[331519537,1720446572072,-500.0,0.00049589,120]
[331519538,1720446572182,-500.0,0.00049589,120]
[331519539,1720446572290,-500.0,0.00049589,120]
[331519540,1720446572402,-500.0,0.00049589,120]
[331519541,1720446572518,-500.0,0.00049589,120]
[331519542,1720446572634,-2601.42,0.00049589,120]
[331519543,1720446572749,-500.0,0.00049589,120]
[331519544,1720446572867,-631.68,0.00049589,120]
[331519545,1720446572979,-500.0,0.00049589,120]
[331519546,1720446573088,-500.0,0.00049589,120]
[331519547,1720446573200,-500.0,0.00049589,120]
[331519548,1720446573312,-161.73120479,0.00049589,120]
[331519549,1720446573440,-500.0,0.00049589,120]
[331519550,1720446573571,-500.0,0.00049589,120]
[331519551,1720446573689,-495.16,0.00049589,120]
[331519552,1720446573804,-500.0,0.00049589,120]
[331519553,1720446573919,-500.0,0.00049589,120]
[331519554,1720446574036,-500.0,0.00049589,120]
[331519555,1720446574163,-566.84,0.00049589,120]
[331519556,1720446574285,-500.0,0.00049589,120]
[331519557,1720446574410,-576.67,0.00049589,120]
[331519558,1720446574533,-656.98,0.00049589,120]
[331519559,1720446574648,-875.42,0.00049589,120]
[331519560,1720446574760,-500.0,0.00049589,120]
[331519561,1720446574879,-500.0,0.00049589,120]
[331519562,1720446575006,-500.0,0.00049589,120]
[331519563,1720446575120,-500.0,0.00049589,120]
[331519564,1720446575236,-500.0,0.00049589,120]
[331519565,1720446575351,-500.0,0.00049589,120]
[331519566,1720446575463,-500.0,0.00049589,120]
[331519567,1720446575583,-500.0,0.00049589,120]
[331519568,1720446575697,-500.0,0.00049589,120]
[331519569,1720446575810,-500.0,0.00049589,120]
[331519570,1720446575926,-500.0,0.00049589,120]
[331519571,1720446576042,-447.46,0.00049589,120]
[331519572,1720446576159,-500.0,0.00049589,120]
[331519573,1720446576271,-601.48,0.00049589,120]
[331519574,1720446576384,-927.61,0.00049589,120]
[331519575,1720446576495,-500.0,0.00049589,120]
[331519576,1720446576606,-500.0,0.00049589,120]
[331519577,1720446576719,-500.0,0.00049589,120]
[331519578,1720446576835,-500.0,0.00049589,120]
[331519579,1720446576949,-500.0,0.00049589,120]
[331519580,1720446577063,-500.0,0.00049589,120]
[331519581,1720446577182,-663.11,0.00049589,120]
[331519582,1720446577298,-500.0,0.00049589,120]
[331519583,1720446577413,-500.0,0.00049589,120]
[331519584,1720446577525,-505.3595043,0.00049589,120]
[331519585,1720446577636,-500.0,0.00049589,120]
[331519586,1720446577749,-995.13,0.00049589,120]
[331519587,1720446577859,-500.0,0.00049589,120]
[331519588,1720446577972,-505.70773696,0.00049589,30]
[331519589,1720446578086,-500.0,0.00049589,120]
[331519590,1720446578202,-508.41286777,0.00049589,120]
[331519591,1720446578315,-503.89,0.00049589,120]
[331519592,1720446578439,-500.0,0.00049589,120]
[331519593,1720446578561,-500.0,0.00049589,120]
[331519594,1720446578685,-500.0,0.00049589,120]
[331519595,1720446578806,-505.86470089,0.00049589,120]
[331519596,1720446578928,-470.24304435,0.00049589,120]
[331519597,1720446579050,-500.0,0.00049589,120]
[331519598,1720446579178,-500.0,0.00049589,120]
[331519599,1720446579303,-2052.66,0.00049589,120]
[331519600,1720446579431,-500.0,0.00049589,120]
[331519601,1720446579560,-500.0,0.00049589,120]
[331519602,1720446579693,-500.0,0.00049589,120]
[331519603,1720446579818,-500.0,0.00049589,120]
[331519604,1720446579948,-500.0,0.00049589,120]
[331519605,1720446580066,-500.0,0.00049589,120]
[331519606,1720446580185,-500.0,0.00049589,120]
[331519607,1720446580301,-500.0,0.00049589,120]
[331519608,1720446580416,-793.83,0.00049589,120]
[331519609,1720446580529,-500.0,0.00049589,120]
[331519610,1720446580654,-500.0,0.00049589,120]
[331519611,1720446580783,-500.0,0.00049589,120]
[331519612,1720446580907,-500.0,0.00049589,120]
[331519613,1720446581030,-500.0,0.00049589,120]
[331519614,1720446581151,-500.0,0.00049589,120]
[331519615,1720446581271,-500.0,0.00049589,120]
[331519616,1720446581390,-500.0,0.00049589,120]
[331519617,1720446581512,-500.0,0.00049589,120]
[331519618,1720446581631,-500.0,0.00049589,120]
[331519619,1720446581748,-500.0,0.00049589,120]
[331519620,1720446581864,-680.97,0.00049589,120]
[331519621,1720446581982,-500.0,0.00049589,120]
[331519622,1720446582102,-500.0,0.00049589,120]
[331519623,1720446582217,-500.0,0.00049589,120]
[331519624,1720446582486,-500.0,0.00049589,120]
[331519625,1720446582594,-500.0,0.00049589,120]
[331519626,1720446582704,-500.0,0.00049589,120]
[331519627,1720446582812,-500.0,0.00049589,120]
[331519628,1720446582918,-500.0,0.00049589,120]
[331519629,1720446583029,-500.0,0.00049589,120]
[331519630,1720446583141,-500.0,0.00049589,120]
[331519631,1720446583254,-576.64,0.00049589,120]
[331519632,1720446583369,-500.0,0.00049589,120]
[331519633,1720446583493,-500.0,0.00049589,120]
[331519634,1720446583615,-500.0,0.00049589,120]
[331519635,1720446583736,-500.0,0.00049589,120]
[331519636,1720446583856,-500.0,0.00049589,120]
[331519637,1720446583974,-503.02154346,0.00049589,120]
[331519638,1720446584096,-844.3,0.00049589,120]
[331519639,1720446584219,-500.0,0.00049589,120]
[331519640,1720446584341,-500.0,0.00049589,120]
[331519641,1720446584467,-626.46,0.00049589,120]
[331519642,1720446584591,-500.0,0.00049589,120]
[331519643,1720446584702,-500.0,0.00049589,120]
[331519644,1720446584816,-858.72,0.00049589,120]
[331519645,1720446584933,-504.55956462,0.00049589,120]
[331519646,1720446585052,-504.78630949,0.00049589,120]
[331519647,1720446585167,-497.47678458,0.00049589,120]
[331519648,1720446585287,-606.39,0.00049589,120]
[331519649,1720446585409,-500.0,0.00049589,120]
[331519650,1720446585524,-505.44138904,0.00049589,120]
[331519651,1720446585641,-500.0,0.00049589,120]
[331519652,1720446585754,-608.68,0.00049589,120]
[331519653,1720446585866,-586.51,0.00049589,120]
[331519654,1720446585976,-500.0,0.00049589,120]
[331519655,1720446586084,-500.0,0.00049589,120]
[331519656,1720446586197,-500.0,0.00049589,120]
[331519657,1720446586310,-500.0,0.00049589,120]
[331519658,1720446586424,-627.79544855,0.00049589,120]
[331519659,1720446586534,-500.0,0.00049589,120]
[331519660,1720446586646,-500.0,0.00049589,120]
[331519661,1720446586757,-500.0,0.00049589,120]
[331519662,1720446586871,-500.0,0.00049589,120]
[331519663,1720446586984,-500.0,0.00049589,120]
[331519664,1720446587110,-504.27244448,0.00049589,120]
[331519665,1720446587229,-500.0,0.00049589,120]
[331519666,1720446587352,-500.0,0.00049589,120]
[331519667,1720446587466,-500.0,0.00049589,120]
[331519668,1720446587586,-500.0,0.00049589,120]
[331519669,1720446587704,-500.0,0.00049589,120]
[331519670,1720446587820,-698.26,0.00049589,120]
[331519671,1720446587937,-500.0,0.00049589,120]
[331519672,1720446588052,-506.3980283,0.00049589,120]
[331519673,1720446588165,-500.0,0.00049589,120]
[331519674,1720446588284,-502.66594857,0.00049589,120]
[331519675,1720446588410,-500.0,0.00049589,120]
[331519676,1720446588533,-580.79,0.00049589,120]
[331519677,1720446588664,-613.01132129,0.00049589,120]
[331519678,1720446588788,-500.0,0.00049589,120]
[331519679,1720446588902,-500.0,0.00049589,120]
[331519680,1720446589019,-1752.42,0.00049589,120]
[331519681,1720446589137,-500.0,0.00049589,120]
[331519682,1720446589258,-500.0,0.00049589,120]
[331519683,1720446589392,-500.0,0.00049589,120]
[331519684,1720446589518,-500.0,0.00049589,120]
[331519685,1720446589646,-500.0,0.00049589,120]
[331519686,1720446589762,-500.0,0.00049589,120]
[331519687,1720446589880,-1395.37,0.00049589,120]
[331519688,1720446590010,-500.0,0.00049589,120]
[331519689,1720446590126,-500.0,0.00049589,120]
[331519690,1720446590238,-500.0,0.00049589,120]
[331519691,1720446590347,-257.57,0.00049589,120]
[331519692,1720446590464,-500.0,0.00049589,120]
[331519693,1720446590582,-500.0,0.00049589,120]
[331519694,1720446590692,-500.0,0.00049589,120]
[331519695,1720446590798,-789.75,0.00049589,120]
[331519696,1720446590905,-500.0,0.00049589,120]
[331519697,1720446591017,-500.0,0.00049589,120]